[Event "Sinquefield Cup 2022"]
[Site "Chess.com"]
[Date "2022.09.05"]
[Round "4"]
[White "Caruana, Fabiano"]
[Black "Vachier Lagrave, Maxime"]
[Result "1-0"]
[WhiteElo "2758"]
[BlackElo "2757"]
[ECO "B90"]
[EventDate "2022.??.??"]
[Annotator "Rafael Leitão"]
[PlyCount "183"]
[Beauty "4810896065556"]
[EventType "swiss"]
[EventRounds "9"]
[TimeControl "5400+30"]

{Round four was a strange day for the chess world. Magnus Carlsen made the surprising decision to withdraw from the tournament, leaving everyone dumbfounded. Fortunately, the day was not only made up of controversies; we also had great chess. This game is very interesting in all its phases and also had its share of drama.} 
1.e4 c5 2.Nf3 d6 3.d4 cxd4 4.Nxd4 Nf6 5.Nc3 a6 6.f3 {Vachier-Lagrave is faithful to his Najdorf Defense and Caruana to his English Attack. A theoretical battle appears on the board.} 6...e5 7.Nb3 Be6 8.Be3 Be7 9.Qd2 O-O 10.O-O-O Nbd7 11.g4 b5 12.g5 Nh5 ( 12...b4 13.gxf6 bxc3 14.Qxc3 Nxf6 15.Na5 {and Caruana achieved an important win in the Olympiad. Caruana-Maghsoodloo, Chennai 2022.} ) 13.Kb1 Nb6 14.Na5 Rc8 15.Nd5 ( 15.a3 {was played by Caruana against the same opponent last year.} ) 15...Nxd5 16.exd5 Bxd5 17.Qxd5 Qxa5 18.c4 Nf4 19.Bxf4 exf4 {All this is still well-known theory.} 20.h4 Qa4 21.Rc1 ( 21.Bd3 {gave Dominguez a win against Vachier-Lagrave last year. The Frenchman certainly has some improvement up his sleeve.} ) 21...Rc5 {A novelty in my human database, but there are still computer games with this move. The Najdorf theory can go very far.} ( 21...Rfe8 {seems more reliable.} ) 22.Qe4 {From now on, I suspect Vachier-Lagrave's preparation ended, or maybe he forgot his analysis.} 22...Re5 $6 ( 22...Re8 $1 {is better. The idea is to sacrifice a pawn and achieve good compensation after} 23.Bd3 g6 24.Qxf4 Bf8 ) 23.Qxf4 f6 $2 {Black wants to activate his bishop, but this move creates weaknesses around the king and loses. 23...Rb8 or 23... Qb4 are better alternatives, although Black's position is already difficult.} ( 23...Rb8 ) ( 23...Qb4 ) 24.Qh2 {Caruana thought for a long time to play this move. It still gives White a big advantage, but 24.Qd2 is even better.} ( 24.gxf6 $2 Bxf6 {is what Black wants.} ) ( 24.g6 {is tempting, but not clear after} 24...d5 $1 ( 24...hxg6 $2 25.Qg3 {with a strong attack.} ) ) ( 24.Qd2 $1 {This is a very strong move and will be played later in the game with the difference that the rook is on e5 here and on c5 in the game. White simply prepares f3-f4.} 24...fxg5 ( 24...bxc4 {is better but has an overwhelming advantage after} 25.Bxc4+ Kh8 26.f4 ) 25.hxg5 {Now White is winning in all variations.} 25...Bxg5 ( 25...Rxg5 26.Bd3 h6 27.Bc2 $1 {and the queen has no squares.} ) 26.Qxd6 Bxc1 ( 26...Rfe8 27.Bd3 h6 28.Bc2 $1 Qa5 29.f4 $3 {This strong move is given by my computer.} 29...Bxf4 ( 29...R5e6 30.Qd5 $18 ) 30.Rcd1 bxc4 31.Rhf1 Rf8 32.Qg6 {with a deadly attack.} ) 27.Bd3 $1 Bh6 28.Qxe5 bxc4 29.Qe6+ Kh8 30.Qe4 g6 31.Qh4 $1 {and White wins.} ) 24...Rc5 ( 24...bxc4 {is a better try, although White is much better after} 25.Bxc4+ Kh8 ) 25.Qe2 Re5 26.Qh2 ( 26.Qd2 {transposes to the lines we checked before.} ) 26...Rc5 27.Qd2 $5 {This is also very effective with the rook on c5.} 27...bxc4 ( 27...fxg5 $2 {Loses in a similar way to the variations previously analyzed.} 28.hxg5 Bxg5 ( 28...Rxg5 29.Bd3 ) 29.Qxd6 Bxc1 30.Bd3 $1 ) 28.Bxc4+ Kh8 29.Qe2 Re5 30.Qd3 d5 31.f4 {A human move, but not the most accurate, according to the machine.} ( 31.Bb3 $6 Qb5 ) ( 31.Bxd5 {is possible, with a better endgame after} 31...Rd8 32.Bb3 ) ( 31.Bxa6 {is the computer's favorite.} ) 31...dxc4 32.Rxc4 Re3 $1 33.Qxe3 Qxc4 34.Qxe7 Kg8 35.Qe3 fxg5 36.fxg5 Rf1+ 37.Rxf1 Qxf1+ 38.Kc2 {After all this logical play, the game arrives at a queen endgame with good winning chances for White. I firmly believe queen endgames are the most difficult in chess, even more than rook endgames. Even the very best can make mistakes, as we will soon see.} 38...Qc4+ 39.Kd2 {The nuances in queen endgames are very hard to understand and even more to explain. Play is very concrete, and sometimes you must check on some exact squares that only a computer can find. For this reason, I will indicate sometimes what the machine think is best, but the reader should not believe that I know why.} 39...Qb4+ ( 39...Qd5+ {is better.} ) 40.Kd3 ( 40.Kd1 $1 {is better. Chess is difficult.} ) 40...Qb5+ 41.Kc3 Qc6+ 42.Kd2 h6 ( 42...Qd5+ {is better.} ) 43.gxh6 Qd5+ 44.Kc2 Qg2+ $6 ( 44...Qc6+ {is more accurate.} ) 45.Qd2 Qc6+ 46.Qc3 ( 46.Kb3 {is more precise.} 46...gxh6 47.Qd3 ) 46...Qxh6 ( 46...Qg6+ {For some mysterious reason, it's better to give this check before capturing the pawn.} 47.Kb3 Qxh6 {Maybe it's because now White can't play b4 like in the game $2} ) 47.Qc4+ Kf8 48.b4 $1 {Now the king hides behind the pawn.} 48...Ke7 49.Kb3 Kd7 50.Ka4 {It's finally clear that White is winning. But the adventures are not over.} 50...Qh5 51.a3 g6 52.Qxa6 Qxh4 53.Qxg6 {The position is easily winning with tablebases on, but not so much when actually playing the game.} 53...Kc7 54.Kb5 Kb7 55.a4 Qe7 56.Qc6+ Kb8 57.Qd5 Qe8+ 58.Kb6 Qe3+ 59.Ka6 Qa7+ 60.Kb5 Qe7 61.Qc6 Qe2+ 62.Ka5 Qe7 63.Qc5 Qf7 64.Qc6 ( 64.b5 {wins easily. It's finally time to push the pawn.} ) 64...Qa7+ 65.Kb5 Qe7 66.Qb6+ Ka8 67.Qc5 $2 {This move throws away the win.} ( 67.Qa6+ Kb8 68.Qc6 {With this triangulation, White forces the black queen to move to a worse square, since she is ideally placed on e7. Chess is easy to explain when you have tablebases at your side.} ) 67...Qb7+ 68.Ka5 Qc7+ $1 {This is the trick.} 69.Kb5 Qb7+ 70.Kc4 Qe4+ 71.Kc3 Qe1+ 72.Kb2 Qd2+ 73.Kb3 Qd1+ 74.Qc2 Qd5+ 75.Kb2 Qd4+ 76.Qc3 Qf2+ 77.Ka3 Qf7 78.Qd3 Qf6 79.a5 Qa1+ $2 ( 79...Qe6 $1 {and tablebases indicate a draw.} ) 80.Kb3 Qe1 81.Kc4 Kb8 82.Qd6+ Ka7 83.Qd4+ Kb7 84.Qd7+ Kb8 85.Qd4 Kb7 86.Qd7+ Kb8 87.a6 $2 {Now it's a draw again.} ( 87.Qd6+ {is one of the winning moves.} ) 87...Qe2+ 88.Qd3 Qe6+ ( 88...Qe7 $1 {is the only move to make a draw. As I wrote earlier, these endgames are impossible for a human to play precisely.} ) 89.Kc5 Qe5+ 90.Qd5 {Now it's over.} 90...Qe3+ 91.Kb5 Qe7 92.a7+ $1 {Caruana forces the exchange of queens.} 1-0

[Event "Sinquefield Cup 2022"]
[Site "Chess.com"]
[Date "2022.09.06"]
[Round "5"]
[White "Dominguez Perez, Leinier"]
[Black "Niemann, Hans Moke"]
[Result "1/2-1/2"]
[WhiteElo "2745"]
[BlackElo "2688"]
[ECO "C54"]
[EventDate "2022.??.??"]
[Annotator "Rafael Leitão"]
[PlyCount "94"]
[Beauty "5705461404680"]
[EventType "swiss"]
[EventRounds "9"]
[TimeControl "5400+30"]

{It must be difficult for the participants to just focus on playing the games right now. It's no wonder that the level of play and combativeness of the tournament has dropped in the last two rounds. Fortunately, tomorrow is a free day and I hope everyone's energies are renewed and tempers calmed so that the tournament continues with great games in its final phase.} 
1.e4 e5 2.Nf3 Nc6 3.Bc4 Nf6 4.d3 Bc5 5.O-O d6 6.c3 a6 7.a4 Ba7 8.Nbd2 O-O 9.h3 h6 10.Re1 Ne7 {An interesting attempt in this heavily theoretical position. 10...Re8 and 10...Be6 are more common.} ( 10...Re8 ) ( 10...Be6 ) 11.Bb3 ( 11.Nf1 {is the main move.} ) ( 11.d4 {is not so good here because of the wise} 11...Nc6 $1 {and White's center is under attack.} ) 11...c5 {This move is ugly because it closes the a7-bishop, but it's point is to make the d4-advance harder for White.} ( 11...Ng6 {is the natural move.} ) 12.Nf1 ( 12.a5 Nc6 13.Nc4 Be6 {and White will have to sacrifice the a5-pawn.} ) ( 12.Nc4 Be6 13.Ne3 {transposes to the game.} ) 12...Be6 13.Ne3 Qd7 14.Bd2 Rad8 $6 {I don't see how this move is useful for Black.} ( 14...b5 $6 {is also not very good after} 15.axb5 axb5 16.Bxe6 fxe6 17.Ng4 $1 Nxg4 18.hxg4 {and this position is me more unpleasant for Black than it seems at first sight. White will push g4-g5 and start some pressure on the kingside.} ) ( 14...Bb6 $5 {Trying to improve the bishop's position is the computer suggestion, although I prefer White.} 15.a5 Bc7 ) 15.a5 $1 {Gaining space on the queenside.} 15...Bb8 ( 15...Ng6 16.c4 {followed by Nd5 with a similar position to what happens in the game.} ) 16.Ba4 Qc8 17.c4 {With natural moves, Dominguez achieves a big positional advantage. White is ready to place a knight on d5 and b2-b4 will open the queenside.} 17...Ng6 18.Nd5 Nxd5 19.cxd5 Bd7 20.b4 cxb4 $6 ( 20...Ba7 {is more stubborn.} ) 21.Rc1 Bxa4 22.Qxa4 Qd7 23.Qxd7 Rxd7 24.Rc4 {A nice touch, although the simple 24.Bxb4 is simple and good.} 24...Ba7 25.Be3 $1 Bxe3 26.fxe3 {This position is objectively lost for Black because of the weaknesses on b7/d6 and the lack of space and counterplay.} 26...f5 {A desperate attempt.} ( 26...Ne7 27.Rxb4 Rc8 28.Reb1 Rcc7 29.g4 {and White is winning in the long run as he can slowly improve the position.} ) 27.exf5 Rxf5 28.Rb1 Rff7 29.Nd2 $1 Ne7 30.e4 Kf8 31.Rcxb4 ( 31.Rbxb4 {is also good.} ) 31...Nc8 32.Nf3 Na7 33.d4 $1 exd4 34.Nxd4 g6 35.R1b3 Kg7 36.h4 {An interesting move, improving the pawn structure., although it's not really necessary.} ( 36.Ne6+ Kf6 37.Rf3+ Ke7 ( 37...Ke5 38.Nf8 $18 ) 38.Rg3 g5 39.h4 $1 gxh4 40.Rg6 {is winning.} ) 36...Nb5 37.Nxb5 $2 {A horrible mistake.The knight belongs to the e6-square.} ( 37.Ne6+ Kf6 38.Rf3+ Ke7 ( 38...Ke5 39.Nf8 $18 ) 39.Rg3 {is easily winning since Black is paralyzed.} 39...Rf6 ( 39...Kf6 40.Rc4 $18 ) 40.Rc4 Na7 {To avoid Rc8.} 41.h5 $1 gxh5 ( 41...g5 {weakens the f5-square and White can win in many ways.} ) 42.Rg7+ Rf7 43.Rg8 {with complete domination.} ) 37...axb5 38.Rf3 $6 {Another bad move. Dominguez loses control of the game.} ( 38.Rxb5 Kf6 39.Rg3 {Still give some winning chances, although Black should make a draw after} ( 39.Kf2 $6 Ke5+ 40.Ke3 Rf4 $1 {with counterplay.} ) 39...g5 40.hxg5+ hxg5 {As his king and rooks can become active in the next moves.} ) 38...Rfe7 39.Kf2 Rc7 40.Ke3 Rc2 {Now Black has enough counterplay for a draw.} 41.Rf2 Rc1 42.Kd3 Rd1+ 43.Rd2 Re1 44.Re2 Rd1+ 45.Rd2 Re1 46.Rf2 Rd1+ 47.Rd2 Re1 1/2-1/2

[Event "Sinquefield Cup 2022"]
[Site "Chess.com"]
[Date "2022.09.11"]
[Round "9"]
[White "Nepomniachtchi, Ian"]
[Black "Niemann, Hans Moke"]
[Result "1/2-1/2"]
[WhiteElo "2792"]
[BlackElo "2688"]
[ECO "A21"]
[EventDate "2022.??.??"]
[Annotator "Rafael Leitão"]
[PlyCount "108"]
[Beauty "5361058714118"]
[EventType "swiss"]
[EventRounds "9"]
[TimeControl "5400+30"]

1.c4 {The English Opening is very popular right now at top level.} 1...e5 2.Nc3 Bb4 {Hans played this same position yesterday, with the white pieces, against Caruana.} 3.Nd5 Be7 {Caruana played the slightly less popular 3...a5.} 4.d4 exd4 ( 4...d6 {is considered the main move, but probably without good reason.} 5.e4 Nf6 6.Nxe7 Qxe7 7.f3 {and White has chances to achieve a better position due to the bishop pair.} ) 5.Qxd4 Nf6 6.Nxe7 Qxe7 7.Bg5 Nc6 8.Qc3 d6 9.Nf3 Be6 {All this is still theory.} 10.g3 {A new move. White played 10. e3 in a high profile recent game.} ( 10.e3 Rg8 $5 11.Bxf6 Qxf6 12.Qxf6 gxf6 13.g3 {and White won this endgame in Donchenko - Ter Sahakyan, Jermuk 2022.} ) 10...h6 {A logical move, forcing White to take on f6 and simplifying the position.} 11.Bxf6 Qxf6 12.Qxf6 gxf6 13.Nd2 $6 {This move is wrong. Maybe Nepomniachtchi confused his opening prepartion, since Black can achieve comfortable equality now.} ( 13.b3 {is the best move. After} 13...d5 14.cxd5 Bxd5 15.Bg2 O-O-O 16.O-O-O {it remains to be seen whether white's better pawn structure is enough for any serious winning attempt, but he certainly can try.} ) 13...d5 $6 ( 13...Nb4 $1 {forces White to move the king and this gives Black a good game after} 14.Kd1 d5 $1 15.a3 Nc6 16.cxd5 Bxd5 17.e4 Be6 18.Bb5 Bd7 ) 14.Bg2 ( 14.cxd5 {is a good option and was suggested by Firouzja in the interview after his game.} 14...Bxd5 15.e4 Be6 16.Bb5 O-O-O ( 16...Bd7 {is also playable.} ) 17.Bxc6 bxc6 18.Ke2 {with an unbalanced endgame where Black's activity should be enough to compensate the damaged pawn structure.} ) 14...dxc4 ( 14...O-O-O {This move seems more logical, since Black is not really afraid of a capture on d5 and he can decide later whether to take on c4 or not.} 15.O-O-O {Now Black can decide if he captures on c4 or if he plays a move 15...Rhe8 or 15...f5. The position remains equal.} ( 15.cxd5 Bxd5 16.Bxd5 Rxd5 {This is an easy equality because black's pieces are very active.} ) ) 15.Bxc6+ bxc6 16.O-O-O ( 16.Rc1 {leads to simplification and a possible draw after} 16...Rb8 17.Nxc4 Bxc4 18.Rxc4 Rxb2 19.O-O Rxa2 20.Rxc6 Rxe2 ) 16...c3 {This is not necessary, but it it's not easy to evaluate that Black is ok with such a bad structure. It was crucial to see that White cannot force the exchange of all the rooks on the d-file.} ( 16...O-O-O 17.Nb1 ( 17.Ne4 {The computer suggest this, but I think no human player would ever allow 17... Bd5.} 17...Bd5 18.f3 Bxe4 19.fxe4 ) 17...Rd6 $1 {This is a very important move. If White exchanges rooks, than the position can become very unpleasant for Black because it will be difficult to defend the weaknesses.} 18.Nc3 f5 {and it seems that White can't make progress here - at least that's what my computer thinks.} ) 17.bxc3 Ke7 ( 17...Bxa2 $2 {Of course this is not possible since the bishop is trapped after} 18.c4 ) 18.Kc2 Rhb8 19.Rb1 Rb6 $1 {This is the point of the move 16...c3. Since White can't exchange rooks, Black is able to activate the rook and attack the a-pawn. This is enough for equal chances.} 20.c4 Ra6 ( 20...Bf5+ 21.e4 Be6 {This bishop dance is interesting, because White doesn't really want to place the pawn on e4. Now it's possible to play f6-f5 at some point, activating the bishop and improving the pawn structure.} ) 21.Rb2 Rg8 $5 {Attempting an interesting rook maneuver that is similar to the one employed in the famous rook ending of the game Capablanca x Alekhine, New York 1924 (in that game the maneuver was Rh8-h5). By the way, I have a short story to tell about this reference game. The endgame played by those giants of chess history is so complex, that once the famous coach Mark Dvoretsky gave it as an analytical task to a young Garry Kasparov, during one of the camps of the Botvinnik School. Dvoretsky told me that, upon studying the analysis written in the young player's notebook, he was sure that Kasparov would be World Champion one day.} ( 21...Ra4 22.Kc3 c5 {and Black is ok. It's not easy for White to improve the knight's position.} ) 22.h4 $5 {White avoids the Rg5-a5 maneuver. Incidentally, a similar approach should have been taken by Capablanca in the aforementioned game. I'm sure Nepomniachtchi knows everything about it.} ( 22.Ra1 Rg5 $1 {leads to a draw after} 23.a4 Rga5 24.Rba2 c5 $1 25.Kc3 ( 25.Nb3 Bxc4 ) 25...Bd7 26.Nb3 Rxa4 27.Rxa4 Rxa4 28.Rxa4 Bxa4 29.Nxc5 Bc6 ) 22...Ra4 23.Kc3 Rg4 $5 {Niemann's rook is persistent $1} ( 23...c5 ) 24.Kb3 Ra5 $6 {After this move White gets a large advantage.} ( 24...Ra6 $1 {is necessary. If White now conitnues} 25.a4 {then} 25...c5 $1 {and White is not in time to stabilize the position, since after} 26.Ra1 Rb6+ 27.Kc3 Rxb2 28.Kxb2 Bxc4 29.f3 Rd4 {the d4-rook is protected and 30.Kc3 is not a double attack.} ) 25.Rc2 $6 ( 25.a4 $1 {This is very strong. The a4 idea will be a common recurrence in this endgame. If now} 25...Ra6 26.Ra1 Rb6+ 27.Kc3 Rxb2 28.Kxb2 Bxc4 $2 29.f3 Rd4 30.Kc3 {and White wins a piece.} ) 25...Rb5+ 26.Kc3 Rc5 $6 {The rook is not well placed here.} ( 26...Ra5 {is necessary.} ) 27.Kb2 $6 ( 27.a4 $1 {Once again this move $1 White wants to improve the position with Ra1 and to limit black's rook activity. If he manages that, the better pawn strucutre is going to te felt and Black will have a hard time defending the endgame.} 27...Bxc4 28.Kb2 $1 {This is the tactical justification.} 28...Bd5 29.Rxc5 Bxh1 30.Ra5 {and Black has a painful defence ahead.} ) 27...Re5 ( 27...Ra5 $1 28.Ra1 Rf5 29.Rf1 Ra5 {And Black holds.} ) 28.e3 Rf5 29.Rf1 Rg8 $6 ( 29...Ra5 $1 {The common pattern is that Black should leave the rook on the a-file before White can shut it down with a4 and Ra1. An interesting variation is} 30.Ra1 Ra4 31.Kb3 Ra6 32.a4 c5 33.Kc3 Bf5 $1 34.Rb2 Rd6 $1 {and Black saves the game.} ) 30.Kc3 {Both 30.a4 and 30.Nb3 are also very good.} ( 30.a4 ) ( 30.Nb3 ) 30...Ra5 31.Rb1 $1 {Now White can play 32.Rb3 in case Black checks on a3.} 31...Rg4 $6 {This makes things worse because white's rook can attack from the rear with a possible Rb8.} ( 31...c5 ) 32.Rb4 c5 33.Rb7 Kd7 34.Rb8 $1 Ra3+ $6 35.Kb2 Ra6 36.Rh8 {Now the h6-pawn falls and White is winning.} 36...Ra4 37.a3 {A refined move, but the pawn could be taken immediately.} ( 37.Rxh6 {Black cannot take on c4 and the check on b4 is not dangerous.} 37...Rb4+ ( 37...f5 38.Rh8 Bxc4 ( 38...Rb4+ 39.Kc3 $18 ) 39.f3 $1 Rxa2+ 40.Kb1 Rxc2 41.Kxc2 {and White wins material.} ) 38.Kc3 {The c4-pawn is taboo because the bishop is lost after} 38...Bxc4 39.f3 ) 37...f5 38.Rc3 {White misses another chance of taking the pawn.} ( 38.Rxh6 Rg8 39.Rc3 {with a winning position.} ) 38...Ke7 39.Rb8 $2 {This gives up the idea of taking on h6 altogether and this deserves a question mark. I suspect Nepomniachtchi was uncomfortable leaving the rook on h6 more or less trapped after} ( 39.Rxh6 Rg8 {but the rook will soon start to play again after} 40.e4 {White is winning easily (for Nepomniachtchi standards, at least).} ) 39...Ra6 40.Kc2 Rb6 {Now things are not clear anymore.} 41.Ra8 Ra6 42.Kb2 Rb6+ 43.Kc1 ( 43.Rb3 {leads to a rook endgame that is probably not enough for a White win after} 43...Bxc4 44.Nxc4 Rxc4 45.Rxa7 Rc6 ) 43...Ra6 44.Kc2 Bd7 $1 {An excellent move, activating the bishop now that 46.Nb3 is not so dangerous.} 45.Kb2 ( 45.Nb3 {After this move Black can choose between taking the a3-pawn or playing 45...Ba4.} 45...Ba4 ( 45...Rxa3 ) ) 45...Be6 $6 ( 45...Rgg6 $1 {It's more accurate to activate the rook now. As my former coach liked to say, the rooks should always be enamored.} ) 46.Rh8 Rd6 ( 46...Bd7 $1 ) 47.Kc1 Bd7 48.Nb3 $2 {This leads to a forced draw. White still has the advantage here.} ( 48.a4 $5 {Is one of the computer's suggestions, but if Nepomniachtchi didn't play it before, I guess it's too late to play it now.} ) ( 48.Ra8 Ra6 49.Rb3 $1 {And White is still pressing.} ) 48...Ba4 $1 49.Nxc5 Rd1+ {White can't escape perpetual check now.} 50.Kb2 Rd2+ 51.Kb1 Rd1+ 52.Kb2 Rd2+ 53.Kb1 Rd1+ 54.Kb2 Rd2+ 1/2-1/2